[Event "IIFL Wealth  4th Mumbai Junior U-13"]
[Site "Mumbai"]
[Date "2019.01.06"]
[Round "8"]
[White "Jain, Kushagra"]
[Black "Kadam Laksh"]
[Result "1-0"]
[ECO "C51"]
[WhiteElo "1323"]
[BlackElo "1182"]
[Annotator "NA"]
[PlyCount "69"]
[EventDate "2018.12.30"]
[EventType "swiss"]
[EventCountry "IND"]
[SourceTitle "playchess.com"]
[Source "ChessBase"]
[SourceQuality "1"]
[TimeControl "40/5400+30:1800+30"]

1. e4 {[%emt 0:04:02]} e5 {[%emt 0:00:00]} 2. Bc4 {[%emt 0:00:11]} Bc5 {[%emt 0:02:26]} 3. Nf3 {[%emt 0:00:15]} Nc6 {[%emt 0:00:18]} 4. b4 {[%emt 0:00:07]} Bxb4 {[%emt 0:01:16]} 5. c3 {[%emt 0:00:10]} Be7 {[%emt 0:01:09]} 6. d4 {[%emt 0:01:32]} d6 {[%emt 0:02:10]} 7. Qb3 {[%emt 0:03:55]} Na5 {[%emt 0:10:14]} 8. Bxf7+ {[%emt 0:01:59]} Kf8 {[%emt 0:03:16]} 9. Qa4 {[%emt 0:01:26]} Kxf7 {[%emt 0:00:34]} 10. Qxa5 {[%emt 0:00:12]} b6 {[%emt 0:04:39]} 11. Qa4 {[%emt 0:02:52]} Bf6 {[%emt 0:03:50]} 12. O-O {[%emt 0:02:34]} Ne7 {[%emt 0:01:26]} 13. dxe5 {[%emt 0:03:59]} dxe5 {[%emt 0:03:53]} 14. Rd1 {[%emt 0:05:28]} Qe8 {[%emt 0:01:14]} 15. Qc4+ {[%emt 0:01:42]} Be6 {[%emt 0:06:02]} 16. Qxc7 {[%emt 0:00:37]} Qa4 {[%emt 0:04:33]} 17. Re1 {[%emt 0:03:59]} Qa5 {[%emt 0:29:43]} 18. Ba3 {[%emt 0:12:49]} Rac8 {[%emt 0:07:31]} 19. Qd6 {[%emt 0:01:22]} Rhd8 {[%emt 0:04:18]} 20. Qb4 {[%emt 0:00:44]} Qxb4 {[%emt 0:00:15]} 21. Bxb4 {[%emt 0:01:50]} a5 {[%emt 0:00:41]} 22. Bxe7 {[%emt 0:02:39]} Kxe7 {[%emt 0:00:08]} 23. Rc1 {[%emt 0:01:01]} Bg4 {[%emt 0:01:44]} 24. Nbd2 {[%emt 0:01:52]} g5 {[%emt 0:02:33]} 25. h3 {[%emt 0:02:36]} Bxf3 {[%emt 0:00:27]} 26. Nxf3 {[%emt 0:00:11]} h5 {[%emt 0:00:20]} 27. Rab1 {[%emt 0:05:58]} Rc6 {[%emt 0:00:28]} 28. Rb5 {[%emt 0:03:32]} Ke6 {[%emt 0:01:11]} 29. Kf1 {[%emt 0:05:52]} Rdc8 {[%emt 0:02:26]} 30. Ke2 {[%emt 0:00:44]} Bd8 {[%emt 0:00:49]} 31. Rxe5+ {[%emt 0:00:57]} Kd6 {[%emt 0:02:48]} 32. Rd5+ {[%emt 0:00:16]} Kc7 {[%emt 0:00:46]} 33. Nxg5 {[%emt 0:00:28]} Kb7 {[%emt 0:00:49]} 34. Nf7 Bf6 35. Rb5 1-0

[Event "IIFL Wealth  4th Mumbai Junior U-13"]
[Site "Mumbai"]
[Date "2019.01.06"]
[Round "8"]
[White "Aditya Sriram"]
[Black "Daakshin Arun"]
[Result "0-1"]
[ECO "B99"]
[WhiteElo "1315"]
[BlackElo "1400"]
[Annotator "NA"]
[PlyCount "44"]
[EventDate "2018.12.30"]
[EventType "swiss"]
[EventCountry "IND"]
[SourceTitle "playchess.com"]
[Source "ChessBase"]
[SourceQuality "1"]
[TimeControl "40/5400+30:1800+30"]

1. e4 {[%emt 0:00:00]} c5 {[%emt 0:00:00]} 2. Nf3 {[%emt 0:00:00]} d6 {[%emt 0:00:00]} 3. d4 {[%emt 0:00:11]} cxd4 {[%emt 0:00:00]} 4. Nxd4 {[%emt 0:00:04]} Nf6 {[%emt 0:00:00]} 5. Nc3 {[%emt 0:00:33]} a6 {[%emt 0:00:00]} 6. Bg5 {[%emt 0:00:08]} e6 {[%emt 0:00:02]} 7. f4 {[%emt 0:00:06]} Be7 {[%emt 0:00:04]} 8. Qf3 {[%emt 0:00:48]} Nbd7 {[%emt 0:00:07]} 9. O-O-O {[%emt 0:00:22]} Qc7 {[%emt 0:00:10]} 10. g4 {[%emt 0:00:34]} b5 {[%emt 0:00:16]} 11. Bxf6 {[%emt 0:01:05]} Nxf6 {[%emt 0:00:39]} 12. g5 {[%emt 0:00:26]} Nd7 {[%emt 0:00:04]} 13. f5 {[%emt 0:00:05]} Ne5 {[%emt 0:01:15]} 14. Qg3 {[%emt 0:07:07]} b4 {[%emt 0:01:08]} 15. Nce2 {[%emt 0:05:22]} Bd7 {[%emt 0:06:27]} 16. h4 {[%emt 0:05:58]} Rc8 {[%emt 0:00:47]} 17. Qb3 {[%emt 0:04:01]} Ng4 {[%emt 0:05:05]} 18. fxe6 {[%emt 0:02:38]} fxe6 {[%emt 0:01:43]} 19. Rg1 {[%emt 0:03:44]} Nf2 {[%emt 0:02:36]} 20. Re1 {[%emt 0:00:32]} e5 {[%emt 0:06:13]} 21. Qf3 {[%emt 0:05:15]} exd4 {[%emt 0:01:27]} 22. Qxf2 {[%emt 0:00:47]} Qxc2# {[%emt 0:00:08]} 0-1

[Event "IIFL Wealth  4th Mumbai Junior U-13"]
[Site "Mumbai"]
[Date "2019.01.06"]
[Round "8"]
[White "Mitank Maru"]
[Black "Makwana Devam"]
[Result "1-0"]
[ECO "A11"]
[WhiteElo "1312"]
[BlackElo "1617"]
[Annotator "NA"]
[PlyCount "70"]
[EventDate "2018.12.30"]
[EventType "swiss"]
[EventCountry "IND"]
[SourceTitle "playchess.com"]
[Source "ChessBase"]
[SourceQuality "1"]
[TimeControl "40/5400+30:1800+30"]

1. c4 {[%emt 0:00:54]} c6 {[%emt 0:00:01]} 2. e4 {[%emt 0:02:32]} g6 {[%emt 0:02:33]} 3. d4 {[%emt 0:04:21]} Bg7 {[%emt 0:00:20]} 4. Nf3 {[%emt 0:02:50]} d6 {[%emt 0:01:39]} 5. Nc3 {[%emt 0:03:06]} Bg4 {[%emt 0:00:50]} 6. Be2 {[%emt 0:07:26]} Nd7 {[%emt 0:02:01]} 7. O-O {[%emt 0:05:27]} c5 {[%emt 0:02:53]} 8. d5 {[%emt 0:03:29]} Ngf6 {[%emt 0:03:43]} 9. Re1 {[%emt 0:04:19]} O-O {[%emt 0:08:15]} 10. h3 {[%emt 0:01:17]} Bxf3 {[%emt 0:02:06]} 11. Bxf3 {[%emt 0:00:30]} Nb6 {[%emt 0:03:59]} 12. Be2 {[%emt 0:08:54]} Nfd7 13. Qc2 {[%emt 0:08:03]} Ne5 {[%emt 0:14:18]} 14. Nd1 {[%emt 0:03:53]} f5 {[%emt 0:10:47]} 15. f4 {[%emt 0:02:44]} Ned7 {[%emt 0:02:59]} 16. exf5 {[%emt 0:04:27]} Rxf5 {[%emt 0:00:23]} 17. Bg4 {[%emt 0:03:06]} Rf8 {[%emt 0:02:19]} 18. Bd2 {[%emt 0:06:36]} Bd4+ {[%emt 0:02:18]} 19. Kh1 {[%emt 0:02:09]} Qe8 {[%emt 0:05:38]} 20. Be6+ {[%emt 0:06:18]} Kh8 {[%emt 0:00:22]} 21. Rf1 {[%emt 0:04:10]} Ne5 {[%emt 0:05:05]} 22. Ne3 {[%emt 0:03:01]} Bxe3 {[%emt 0:01:49]} 23. Bxe3 {[%emt 0:01:17]} Nexc4 {[%emt 0:02:43]} 24. Qc3+ {[%emt 0:00:51]} Rf6 {[%emt 0:00:01]} 25. Bf2 {[%emt 0:00:28]} Qf8 {[%emt 0:02:41]} 26. Bh4 {[%emt 0:00:56]} Qg7 {[%emt 0:00:02]} 27. Bxf6 {[%emt 0:00:49]} exf6 {[%emt 0:00:13]} 28. a4 {[%emt 0:02:18]} f5 {[%emt 0:00:45]} 29. Qxg7+ {[%emt 0:01:05]} Kxg7 {[%emt 0:00:01]} 30. a5 {[%emt 0:01:09]} Nc8 {[%emt 0:00:23]} 31. Rfe1 {[%emt 0:01:24]} Ne7 {[%emt 0:01:13]} 32. Re2 {[%emt 0:01:50]} b6 33. Bd7 Kf6 34. Re6+ Kf7 35. Rae1 Rc8 1-0

[Event "IIFL Wealth  4th Mumbai Junior U-13"]
[Site "Mumbai"]
[Date "2019.01.06"]
[Round "8"]
[White "Vivaan Vijay Saraogi"]
[Black "Mahi Amit Doshi"]
[Result "0-1"]
[ECO "B18"]
[WhiteElo "1290"]
[BlackElo "1551"]
[Annotator "NA"]
[PlyCount "74"]
[EventDate "2018.12.30"]
[EventType "swiss"]
[EventCountry "IND"]
[SourceTitle "playchess.com"]
[Source "ChessBase"]
[SourceQuality "1"]
[TimeControl "40/5400+30:1800+30"]

1. e4 {[%emt 0:00:00]} c6 {[%emt 0:00:00]} 2. d4 d5 {[%emt 0:00:00]} 3. Nd2 {[%emt 0:00:00]} dxe4 {[%emt 0:00:06]} 4. Nxe4 {[%emt 0:00:00]} Bf5 {[%emt 0:00:01]} 5. Ng3 {[%emt 0:00:00]} Bg6 {[%emt 0:00:01]} 6. h4 {[%emt 0:00:00]} h6 {[%emt 0:00:01]} 7. Nh3 {[%emt 0:00:00]} Nf6 {[%emt 0:00:40]} 8. Nf4 {[%emt 0:00:00]} Bh7 {[%emt 0:00:01]} 9. Bc4 {[%emt 0:00:13]} e6 {[%emt 0:00:03]} 10. O-O {[%emt 0:00:11]} Bd6 {[%emt 0:01:33]} 11. Re1 {[%emt 0:00:08]} O-O {[%emt 0:00:21]} 12. c3 {[%emt 0:00:29]} Nd5 {[%emt 0:01:31]} 13. Bxd5 {[%emt 0:05:46]} cxd5 {[%emt 0:03:55]} 14. Qg4 {[%emt 0:01:52]} Nd7 {[%emt 0:03:31]} 15. Nxe6 {[%emt 0:00:28]} fxe6 {[%emt 0:05:11]} 16. Qxe6+ {[%emt 0:00:08]} Rf7 {[%emt 0:01:38]} 17. Qxd6 {[%emt 0:00:15]} Qxh4 {[%emt 0:00:31]} 18. Qxd5 {[%emt 0:01:13]} Nf6 {[%emt 0:01:08]} 19. Qc4 {[%emt 0:02:30]} Ng4 {[%emt 0:00:16]} 20. Be3 {[%emt 0:09:28]} Qh2+ {[%emt 0:04:58]} 21. Kf1 {[%emt 0:00:14]} Re8 {[%emt 0:21:41]} 22. Bf4 {[%emt 0:44:54]} Ref8 {[%emt 0:16:48]} 23. Rad1 {[%emt 0:20:08]} Kh8 {[%emt 0:07:18]} 24. Re8 {[%emt 0:04:33]} Rxf4 {[%emt 0:03:02]} 25. Rxf8+ {[%emt 0:00:07]} Rxf8 {[%emt 0:00:02]} 26. Rd2 {[%emt 0:00:02]} Ne3+ {[%emt 0:00:08]} 27. Ke1 {[%emt 0:00:33]} Nxc4 {[%emt 0:00:07]} 28. Re2 {[%emt 0:00:07]} Qg1+ {[%emt 0:00:08]} 29. Nf1 {[%emt 0:00:10]} Bd3 {[%emt 0:00:16]} 30. f3 {[%emt 0:00:17]} Bxe2 {[%emt 0:00:11]} 31. Kxe2 {[%emt 0:00:01]} Re8+ {[%emt 0:00:02]} 32. Kd3 {[%emt 0:00:42]} Qxf1+ {[%emt 0:00:10]} 33. Kc2 {[%emt 0:00:01]} b5 {[%emt 0:00:23]} 34. Kb3 {[%emt 0:00:14]} a5 {[%emt 0:00:01]} 35. a4 {[%emt 0:00:08]} Qd1+ {[%emt 0:00:14]} 36. Ka2 {[%emt 0:00:01]} Qxa4+ {[%emt 0:00:02]} 37. Kb1 {[%emt 0:00:02]} Re1# {[%emt 0:00:01]} 0-1

[Event "IIFL Wealth  4th Mumbai Junior U-13"]
[Site "Mumbai"]
[Date "2019.01.06"]
[Round "8"]
[White "Srivatsan Karthikeyan"]
[Black "Arjun Sidharth S"]
[Result "0-1"]
[ECO "B90"]
[WhiteElo "1288"]
[BlackElo "1489"]
[Annotator "NA"]
[PlyCount "132"]
[EventDate "2018.12.30"]
[EventType "swiss"]
[EventCountry "IND"]
[SourceTitle "playchess.com"]
[Source "ChessBase"]
[SourceQuality "1"]
[TimeControl "40/5400+30:1800+30"]

1. e4 {[%emt 0:00:00]} c5 {[%emt 0:00:00]} 2. Nf3 {[%emt 0:00:00]} d6 {[%emt 0:00:00]} 3. d4 {[%emt 0:00:00]} cxd4 {[%emt 0:00:04]} 4. Nxd4 {[%emt 0:00:00]} Nf6 {[%emt 0:00:13]} 5. Nc3 {[%emt 0:00:05]} a6 {[%emt 0:00:07]} 6. Be3 {[%emt 0:00:41]} e5 {[%emt 0:00:07]} 7. Nb3 {[%emt 0:00:06]} Be6 {[%emt 0:00:40]} 8. f3 {[%emt 0:01:39]} Nbd7 {[%emt 0:00:14]} 9. Qd2 {[%emt 0:00:09]} b5 {[%emt 0:00:22]} 10. O-O-O {[%emt 0:00:13]} Nb6 {[%emt 0:02:26]} 11. Qf2 {[%emt 0:03:06]} Nc4 {[%emt 0:03:41]} 12. Bxc4 {[%emt 0:01:25]} bxc4 {[%emt 0:00:12]} 13. Na5 {[%emt 0:00:08]} Qd7 {[%emt 0:02:36]} 14. Rd2 {[%emt 0:01:14]} Be7 {[%emt 0:06:49]} 15. Rhd1 {[%emt 0:00:08]} O-O {[%emt 0:02:12]} 16. Nd5 {[%emt 0:04:44]} Bxd5 {[%emt 0:01:15]} 17. exd5 {[%emt 0:00:11]} Qa4 {[%emt 0:00:20]} 18. Nc6 {[%emt 0:00:11]} Nxd5 19. Nxe7+ {[%emt 0:00:08]} Nxe7 {[%emt 0:01:37]} 20. Kb1 {[%emt 0:00:09]} Nc8 {[%emt 0:12:30]} 21. c3 {[%emt 0:00:46]} Qc6 {[%emt 0:09:52]} 22. Qg3 {[%emt 0:00:52]} f5 {[%emt 0:14:55]} 23. Bf2 {[%emt 0:03:27]} Rf6 {[%emt 0:07:09]} 24. h4 {[%emt 0:08:27]} Ne7 {[%emt 0:03:13]} 25. h5 {[%emt 0:03:00]} Rb8 {[%emt 0:02:14]} 26. Rh1 {[%emt 0:00:53]} Nd5 {[%emt 0:01:59]} 27. Rc1 {[%emt 0:02:15]} Nf4 {[%emt 0:00:24]} 28. Rcd1 {[%emt 0:00:35]} Nd3 {[%emt 0:00:36]} 29. Rxd3 {[%emt 0:00:14]} cxd3 {[%emt 0:00:10]} 30. Rxd3 {[%emt 0:00:09]} Qc4 {[%emt 0:01:26]} 31. Rd2 {[%emt 0:00:44]} Qxc3 {[%emt 0:01:02]} 32. Rc2 {[%emt 0:00:37]} Qd3 {[%emt 0:00:27]} 33. Be1 {[%emt 0:02:16]} Rff8 {[%emt 0:02:52]} 34. h6 {[%emt 0:00:21]} g6 {[%emt 0:00:25]} 35. Kc1 {[%emt 0:00:25]} Rfc8 {[%emt 0:00:35]} 36. Bc3 {[%emt 0:00:08]} Qe3+ {[%emt 0:00:39]} 37. Bd2 {[%emt 0:00:54]} Rxc2+ {[%emt 0:00:58]} 38. Kxc2 {[%emt 0:00:12]} Rc8+ {[%emt 0:00:12]} 39. Kd1 {[%emt 0:00:15]} Qd3 {[%emt 0:00:09]} 40. Ke1 {[%emt 0:00:00]} Qb1+ {[%emt 0:00:00]} 41. Ke2 {[%emt 0:01:02]} Qxa2 {[%emt 0:01:29]} 42. Qg5 {[%emt 0:00:09]} Kf7 {[%emt 0:01:31]} 43. Qe3 {[%emt 0:00:58]} Qc4+ {[%emt 0:00:16]} 44. Ke1 {[%emt 0:01:39]} Qh4+ {[%emt 0:01:21]} 45. Ke2 {[%emt 0:00:09]} Qc4+ {[%emt 0:00:53]} 46. Ke1 {[%emt 0:00:07]} Qc5 {[%emt 0:01:11]} 47. Qb3+ {[%emt 0:00:08]} Qc4 {[%emt 0:02:36]} 48. Qe3 {[%emt 0:01:29]} Qh4+ {[%emt 0:01:06]} 49. Ke2 {[%emt 0:00:06]} Qd4 {[%emt 0:00:06]} 50. Qb3+ {[%emt 0:00:16]} Qc4+ {[%emt 0:00:10]} 51. Qxc4+ {[%emt 0:00:15]} Rxc4 {[%emt 0:00:01]} 52. Bc3 {[%emt 0:00:22]} Rxc3 {[%emt 0:00:09]} 53. bxc3 {[%emt 0:00:08]} Ke6 {[%emt 0:00:07]} 54. Kd3 {[%emt 0:00:07]} Kd5 {[%emt 0:00:06]} 55. c4+ {[%emt 0:00:42]} Kc5 {[%emt 0:00:10]} 56. Kc3 {[%emt 0:00:04]} a5 {[%emt 0:00:11]} 57. g4 {[%emt 0:00:10]} fxg4 {[%emt 0:00:04]} 58. fxg4 {[%emt 0:00:05]} e4 {[%emt 0:00:06]} 59. g5 {[%emt 0:00:09]} a4 {[%emt 0:00:03]} 60. Kc2 {[%emt 0:00:07]} Kxc4 {[%emt 0:00:08]} 61. Kb2 {[%emt 0:01:07]} e3 {[%emt 0:00:41]} 62. Ka2 {[%emt 0:00:18]} e2 {[%emt 0:00:10]} 63. Kb2 {[%emt 0:00:06]} e1=Q {[%emt 0:00:04]} 64. Ka2 {[%emt 0:00:09]} Qd2+ {[%emt 0:00:04]} 65. Kb1 {[%emt 0:00:08]} a3 {[%emt 0:00:03]} 66. Ka1 {[%emt 0:00:05]} Qb2# {[%emt 0:00:10]} 0-1

[Event "IIFL Wealth  4th Mumbai Junior U-13"]
[Site "Mumbai"]
[Date "2019.01.06"]
[Round "8"]
[White "Vishal Shewale"]
[Black "Rajbeer Ahmed"]
[Result "1-0"]
[ECO "B24"]
[WhiteElo "1287"]
[BlackElo "1550"]
[Annotator "NA"]
[PlyCount "87"]
[EventDate "2018.12.30"]
[EventType "swiss"]
[EventCountry "IND"]
[SourceTitle "playchess.com"]
[Source "ChessBase"]
[SourceQuality "1"]
[TimeControl "40/5400+30:1800+30"]

1. e4 {[%emt 0:00:00]} c5 {[%emt 0:00:00]} 2. Nc3 {[%emt 0:00:31]} Nc6 {[%emt 0:00:00]} 3. Bb5 {[%emt 0:00:07]} e6 {[%emt 0:00:53]} 4. Bxc6 {[%emt 0:00:32]} bxc6 {[%emt 0:00:12]} 5. d3 {[%emt 0:00:26]} d5 {[%emt 0:02:28]} 6. f4 {[%emt 0:00:34]} Nf6 {[%emt 0:09:17]} 7. e5 {[%emt 0:08:46]} Nd7 {[%emt 0:00:32]} 8. Nf3 {[%emt 0:01:15]} Qb6 {[%emt 0:01:32]} 9. b3 {[%emt 0:10:03]} Ba6 {[%emt 0:09:50]} 10. Na4 {[%emt 0:00:24]} Qc7 {[%emt 0:00:26]} 11. c4 {[%emt 0:01:44]} Nb6 {[%emt 0:01:41]} 12. Nc3 {[%emt 0:00:24]} Rd8 {[%emt 0:07:56]} 13. Qe2 {[%emt 0:00:51]} Nd7 {[%emt 0:07:33]} 14. O-O {[%emt 0:05:43]} Be7 {[%emt 0:06:09]} 15. Qf2 {[%emt 0:08:17]} Nf8 {[%emt 0:06:50]} 16. Na4 {[%emt 0:00:41]} d4 {[%emt 0:03:13]} 17. Nd2 {[%emt 0:06:42]} Nd7 {[%emt 0:04:29]} 18. Ne4 {[%emt 0:00:49]} g6 {[%emt 0:08:17]} 19. Ba3 {[%emt 0:02:08]} Qa5 {[%emt 0:01:01]} 20. Qe1 {[%emt 0:00:42]} Qxe1 {[%emt 0:00:32]} 21. Raxe1 {[%emt 0:00:07]} g5 {[%emt 0:01:12]} 22. Nxg5 {[%emt 0:02:08]} Bxg5 {[%emt 0:03:11]} 23. fxg5 {[%emt 0:00:46]} Rg8 {[%emt 0:00:12]} 24. h4 {[%emt 0:00:11]} h6 {[%emt 0:00:34]} 25. gxh6 {[%emt 0:00:36]} Rg6 {[%emt 0:00:11]} 26. Nxc5 {[%emt 0:00:13]} Nxc5 {[%emt 0:00:48]} 27. Bxc5 {[%emt 0:00:09]} Rxh6 {[%emt 0:00:05]} 28. Re4 {[%emt 0:00:17]} Rd7 {[%emt 0:01:01]} 29. Rg4 {[%emt 0:01:22]} Rh8 {[%emt 0:00:38]} 30. Rf6 {[%emt 0:00:22]} Rd8 {[%emt 0:02:11]} 31. Rg7 {[%emt 0:00:30]} Rd7 {[%emt 0:00:20]} 32. h5 {[%emt 0:00:30]} Kd8 {[%emt 0:01:45]} 33. Bd6 {[%emt 0:01:51]} Kc8 {[%emt 0:02:07]} 34. h6 {[%emt 0:00:10]} c5 {[%emt 0:01:06]} 35. h7 {[%emt 0:00:11]} Kb7 {[%emt 0:00:36]} 36. Rh6 {[%emt 0:00:32]} Kc6 {[%emt 0:00:29]} 37. Rg8 {[%emt 0:00:17]} Rd8 {[%emt 0:00:06]} 38. Rxd8 {[%emt 0:00:11]} Rxd8 {[%emt 0:00:12]} 39. h8=Q {[%emt 0:00:07]} Rg8 {[%emt 0:01:34]} 40. Qxg8 {[%emt 0:00:00]} Bc8 {[%emt 0:00:00]} 41. Qxc8+ {[%emt 0:00:27]} Kb6 {[%emt 0:00:06]} 42. Bxc5+ {[%emt 0:00:31]} Ka5 {[%emt 0:00:09]} 43. Qc7+ {[%emt 0:00:08]} Ka6 {[%emt 0:00:04]} 44. Qxa7# {[%emt 0:00:06]} 1-0

[Event "IIFL Wealth  4th Mumbai Junior U-13"]
[Site "Mumbai"]
[Date "2019.01.06"]
[Round "8"]
[White "Keshav Padmanabhan"]
[Black "Rushyendra Chowdary Kantipudi"]
[Result "0-1"]
[ECO "B24"]
[WhiteElo "1272"]
[BlackElo "1527"]
[Annotator "NA"]
[PlyCount "64"]
[EventDate "2018.12.30"]
[EventType "swiss"]
[EventCountry "IND"]
[SourceTitle "playchess.com"]
[Source "ChessBase"]
[SourceQuality "1"]
[TimeControl "40/5400+30:1800+30"]

1. e4 {[%emt 0:00:00]} c5 {[%emt 0:00:00]} 2. Nc3 {[%emt 0:00:00]} Nc6 {[%emt 0:00:22]} 3. g3 {[%emt 0:00:00]} e6 {[%emt 0:00:11]} 4. Bg2 {[%emt 0:00:05]} Nge7 {[%emt 0:00:08]} 5. d3 {[%emt 0:00:10]} g6 {[%emt 0:00:39]} 6. Be3 {[%emt 0:00:13]} d6 {[%emt 0:09:57]} 7. f4 {[%emt 0:00:22]} Bg7 {[%emt 0:00:07]} 8. Nf3 {[%emt 0:00:19]} O-O {[%emt 0:02:25]} 9. O-O {[%emt 0:00:16]} b6 {[%emt 0:00:08]} 10. Rb1 {[%emt 0:00:40]} Bb7 {[%emt 0:00:08]} 11. Qd2 {[%emt 0:00:51]} d5 {[%emt 0:00:29]} 12. exd5 {[%emt 0:19:39]} exd5 {[%emt 0:01:26]} 13. Bf2 {[%emt 0:02:37]} Nf5 {[%emt 0:07:07]} 14. g4 {[%emt 0:03:02]} Nfd4 {[%emt 0:06:09]} 15. Nxd5 {[%emt 0:21:43]} Qd7 {[%emt 0:12:02]} 16. Ne3 {[%emt 0:17:09]} Nxf3+ {[%emt 0:00:06]} 17. Bxf3 {[%emt 0:02:49]} Nd4 {[%emt 0:00:09]} 18. Bd1 {[%emt 0:13:38]} Qc6 {[%emt 0:00:09]} 19. Bg3 {[%emt 0:00:14]} Rfe8 {[%emt 0:01:53]} 20. Qg2 {[%emt 0:08:14]} Rxe3 {[%emt 0:01:09]} 21. Qxc6 {[%emt 0:01:36]} Bxc6 {[%emt 0:00:07]} 22. c3 {[%emt 0:00:14]} Ne2+ {[%emt 0:00:40]} 23. Kf2 {[%emt 0:01:13]} Rae8 {[%emt 0:00:24]} 24. Ke1 {[%emt 0:04:35]} Nxg3+ {[%emt 0:00:33]} 25. Kd2 {[%emt 0:00:10]} Nxf1+ {[%emt 0:00:06]} 26. Kc2 {[%emt 0:00:12]} Re1 {[%emt 0:00:11]} 27. Kb3 {[%emt 0:00:38]} Nd2+ {[%emt 0:00:07]} 28. Kc2 {[%emt 0:00:08]} Nxb1 {[%emt 0:00:05]} 29. Kxb1 R8e2 {[%emt 0:00:28]} 30. a3 {[%emt 0:00:36]} Rxd1+ {[%emt 0:00:12]} 31. Ka2 {[%emt 0:00:02]} Bd5+ {[%emt 0:00:27]} 32. c4 {[%emt 0:00:05]} Rxb2# {[%emt 0:00:04]} 0-1

[Event "IIFL Wealth  4th Mumbai Junior U-13"]
[Site "Mumbai"]
[Date "2019.01.06"]
[Round "8"]
[White "Sushanth Kamabathula"]
[Black "Ratnapriya K"]
[Result "1/2-1/2"]
[ECO "C55"]
[WhiteElo "1267"]
[BlackElo "1516"]
[Annotator "NA"]
[PlyCount "120"]
[EventDate "2018.12.30"]
[EventType "swiss"]
[EventCountry "IND"]
[SourceTitle "playchess.com"]
[Source "ChessBase"]
[SourceQuality "1"]
[TimeControl "40/5400+30:1800+30"]

1. e4 {[%emt 0:00:00]} e5 {[%emt 0:00:00]} 2. Nf3 {[%emt 0:00:55]} Nc6 {[%emt 0:00:00]} 3. Bc4 {[%emt 0:00:11]} Nf6 {[%emt 0:00:00]} 4. d3 {[%emt 0:00:10]} Be7 {[%emt 0:00:04]} 5. O-O {[%emt 0:00:08]} O-O {[%emt 0:00:08]} 6. c3 {[%emt 0:00:33]} d5 {[%emt 0:00:07]} 7. exd5 {[%emt 0:14:24]} Nxd5 {[%emt 0:00:28]} 8. Be3 {[%emt 0:01:25]} Bg4 {[%emt 0:02:35]} 9. Nbd2 {[%emt 0:01:52]} Kh8 {[%emt 0:05:14]} 10. Bxd5 {[%emt 0:04:46]} Qxd5 {[%emt 0:00:20]} 11. Qb3 {[%emt 0:30:46]} Qxb3 {[%emt 0:01:06]} 12. axb3 {[%emt 0:00:19]} f5 {[%emt 0:00:56]} 13. b4 {[%emt 0:04:15]} f4 {[%emt 0:04:18]} 14. Bc5 {[%emt 0:00:32]} Bxc5 {[%emt 0:00:13]} 15. bxc5 {[%emt 0:00:14]} Rad8 {[%emt 0:00:08]} 16. d4 {[%emt 0:00:18]} exd4 {[%emt 0:06:24]} 17. cxd4 {[%emt 0:00:11]} a6 {[%emt 0:00:32]} 18. h3 {[%emt 0:01:50]} Bxf3 {[%emt 0:00:25]} 19. Nxf3 {[%emt 0:00:01]} Nxd4 {[%emt 0:00:23]} 20. Nxd4 {[%emt 0:02:46]} Rxd4 {[%emt 0:00:11]} 21. Rfd1 {[%emt 0:00:06]} Rc4 {[%emt 0:01:29]} 22. Rac1 {[%emt 0:00:32]} Rxc1 {[%emt 0:01:27]} 23. Rxc1 {[%emt 0:00:09]} Rf5 {[%emt 0:00:46]} 24. c6 Rb5 {[%emt 0:03:18]} 25. cxb7 {[%emt 0:03:24]} Rxb7 {[%emt 0:01:24]} 26. Rc6 {[%emt 0:00:08]} a5 {[%emt 0:02:37]} 27. Ra6 {[%emt 0:00:08]} h6 {[%emt 0:00:11]} 28. Rxa5 {[%emt 0:00:09]} Rxb2 {[%emt 0:00:17]} 29. Rc5 {[%emt 0:00:10]} Rb1+ {[%emt 0:05:54]} 30. Kh2 {[%emt 0:00:09]} Rf1 {[%emt 0:00:28]} 31. f3 {[%emt 0:00:23]} Kg8 {[%emt 0:01:38]} 32. Rxc7 {[%emt 0:00:13]} Rd1 {[%emt 0:02:43]} 33. h4 {[%emt 0:00:26]} Rd4 {[%emt 0:01:52]} 34. Kg1 {[%emt 0:09:36]} Rd1+ {[%emt 0:00:46]} 35. Kh2 {[%emt 0:00:06]} Rd4 {[%emt 0:00:22]} 36. Kg1 {[%emt 0:00:02]} Kh7 {[%emt 0:00:31]} 37. Rc6 {[%emt 0:00:11]} Rd5 {[%emt 0:01:23]} 38. Rc4 {[%emt 0:00:24]} Rf5 {[%emt 0:00:41]} 39. Kf2 {[%emt 0:00:08]} Kg6 {[%emt 0:00:41]} 40. g4 {[%emt 0:00:00]} fxg3+ {[%emt 0:00:00]} 41. Kxg3 {[%emt 0:01:48]} Kh5 {[%emt 0:01:35]} 42. Rg4 {[%emt 0:00:25]} g6 {[%emt 0:00:15]} 43. Kg2 {[%emt 0:00:27]} Rb5 {[%emt 0:02:05]} 44. Kg3 {[%emt 0:00:26]} Rb1 {[%emt 0:00:30]} 45. Kg2 {[%emt 0:00:16]} Rb2+ {[%emt 0:00:09]} 46. Kg3 {[%emt 0:00:06]} Rb5 {[%emt 0:04:16]} 47. Re4 {[%emt 0:01:09]} Rd5 {[%emt 0:01:07]} 48. Rc4 {[%emt 0:00:17]} Ra5 {[%emt 0:01:48]} 49. Rd4 {[%emt 0:00:06]} Rc5 {[%emt 0:00:13]} 50. Rb4 {[%emt 0:00:07]} Ra5 {[%emt 0:00:14]} 51. Rd4 {[%emt 0:00:06]} Rb5 {[%emt 0:02:15]} 52. Rd6 {[%emt 0:00:25]} Ra5 {[%emt 0:00:40]} 53. Rb6 {[%emt 0:00:26]} Rc5 {[%emt 0:00:23]} 54. Rd6 {[%emt 0:00:08]} Rb5 {[%emt 0:00:12]} 55. Rc6 {[%emt 0:00:24]} Ra5 {[%emt 0:00:30]} 56. Rb6 {[%emt 0:00:28]} Rc5 {[%emt 0:00:11]} 57. Rd6 {[%emt 0:00:06]} Ra5 {[%emt 0:00:12]} 58. Rb6 {[%emt 0:00:07]} Rc5 {[%emt 0:00:11]} 59. Rd6 {[%emt 0:00:12]} Ra5 {[%emt 0:00:11]} 60. Rb6 {[%emt 0:00:13]} Rc5 {[%emt 0:00:39]} 1/2-1/2